[Event "Early-Titled-Tuesday-Blitz-May-28-2024"]
[Site "Chess.com"]
[Date "2024.05.28"]
[Round "11"]
[White "platy3"]
[Black "crazy_but_lazy"]
[Result "0-1"]
[WhiteElo "2876"]
[BlackElo "2699"]
[TimeControl "180+1"]
[EndTime "10:09:56 PDT"]
[Termination "crazy_but_lazy won by resignation"]

1. d4 {[%clk 0:02:56.8]} 1... Nf6 {[%clk 0:02:57.7]} 2. Bf4 {[%clk 0:02:55.1]}
2... d6 {[%clk 0:02:46.7]} 3. Nc3 {[%clk 0:02:54.5]} 3... c6 {[%clk 0:02:17.3]}
4. e4 {[%clk 0:02:53.2]} 4... g6 {[%clk 0:02:16.9]} 5. Qd2 {[%clk 0:02:52.2]}
5... b5 {[%clk 0:02:13.8]} 6. a3 {[%clk 0:02:51.1]} 6... Qb6 {[%clk 0:02:07]} 7.
e5 {[%clk 0:02:44.9]} 7... Nd5 {[%clk 0:02:04.4]} 8. Nxd5 {[%clk 0:02:43.3]}
8... cxd5 {[%clk 0:02:05.3]} 9. exd6 {[%clk 0:02:38.2]} 9... e6 {[%clk
0:02:05.2]} 10. Be5 {[%clk 0:02:19.2]} 10... Rg8 {[%clk 0:02:04.4]} 11. Nf3
{[%clk 0:02:19.1]} 11... a6 {[%clk 0:01:31.2]} 12. Bd3 {[%clk 0:01:59]} 12...
Nd7 {[%clk 0:01:28.9]} 13. O-O {[%clk 0:01:56.5]} 13... f6 {[%clk 0:01:28.2]}
14. Bg3 {[%clk 0:01:56.4]} 14... Bxd6 {[%clk 0:01:28.8]} 15. Bxd6 {[%clk
0:01:53.8]} 15... Qxd6 {[%clk 0:01:29.3]} 16. Rfe1 {[%clk 0:01:54.5]} 16... Kf7
{[%clk 0:01:29.5]} 17. a4 {[%clk 0:01:53.1]} 17... b4 {[%clk 0:01:26.7]} 18. a5
{[%clk 0:01:52.1]} 18... Bb7 {[%clk 0:01:25.2]} 19. Ra4 {[%clk 0:01:51.6]} 19...
Bc6 {[%clk 0:01:20.4]} 20. Qxb4 {[%clk 0:01:49.1]} 20... Qxb4 {[%clk 0:01:13.3]}
21. Rxb4 {[%clk 0:01:50]} 21... Ke7 {[%clk 0:01:13.6]} 22. c3 {[%clk 0:01:48.6]}
22... Kd6 {[%clk 0:01:13.9]} 23. Bf1 {[%clk 0:01:44.6]} 23... Rge8 {[%clk
0:01:12.2]} 24. Nd2 {[%clk 0:01:41.6]} 24... e5 {[%clk 0:01:02.4]} 25. dxe5+
{[%clk 0:01:41.4]} 25... fxe5 {[%clk 0:01:03.3]} 26. f3 {[%clk 0:01:40]} 26...
Re7 {[%clk 0:00:57.9]} 27. Rd1 {[%clk 0:01:39.7]} 27... Kc7 {[%clk 0:00:57.8]}
28. Rh4 {[%clk 0:01:31.5]} 28... e4 {[%clk 0:00:44]} 29. fxe4 {[%clk 0:01:30.7]}
29... dxe4 {[%clk 0:00:44.9]} 30. Nc4 {[%clk 0:01:29.2]} 30... e3 {[%clk
0:00:44.1]} 31. Re1 {[%clk 0:01:21.9]} 31... Rae8 {[%clk 0:00:43.7]} 32. Be2
{[%clk 0:01:17.6]} 32... Rf8 {[%clk 0:00:43.8]} 33. Rf1 {[%clk 0:01:03.7]} 33...
Rd8 {[%clk 0:00:38.5]} 34. Rh3 {[%clk 0:01:01.2]} 34... Nc5 {[%clk 0:00:36.1]}
35. b4 {[%clk 0:00:58.9]} 35... Na4 {[%clk 0:00:36.2]} 36. Rc1 {[%clk
0:00:55.3]} 36... Bb5 {[%clk 0:00:34.6]} 37. Kf1 {[%clk 0:00:46.8]} 37... Rd2
{[%clk 0:00:32.2]} 38. Re1 {[%clk 0:00:11.5]} 38... Nxc3 {[%clk 0:00:32.4]} 39.
Rxe3 {[%clk 0:00:07.9]} 39... Rxe3 {[%clk 0:00:28.6]} 40. Nxe3 {[%clk
0:00:07.5]} 40... Nxe2 {[%clk 0:00:25.6]} 41. Kf2 {[%clk 0:00:06.3]} 41... Nf4+
{[%clk 0:00:19.3]} 42. Kf3 {[%clk 0:00:06.8]} 42... Nd3 {[%clk 0:00:18.3]} 43.
Rb1 {[%clk 0:00:07.5]} 43... Ne5+ {[%clk 0:00:16.4]} 44. Kf4 {[%clk 0:00:07.8]}
44... Nd3+ {[%clk 0:00:15.2]} 45. Kg5 {[%clk 0:00:07.8]} 45... Re2 {[%clk
0:00:15.1]} 46. Nd5+ {[%clk 0:00:08]} 46... Kd6 {[%clk 0:00:15.7]} 47. Nc3
{[%clk 0:00:08.3]} 47... Rxg2+ {[%clk 0:00:16.3]} 48. Kh6 {[%clk 0:00:08.6]}
48... Rxh2+ {[%clk 0:00:16.9]} 49. Kg7 {[%clk 0:00:09.4]} 49... Bc4 {[%clk
0:00:17.4]} 50. Ne4+ {[%clk 0:00:03.7]} 50... Ke5 {[%clk 0:00:17.1]} 51. Ng5
{[%clk 0:00:02.6]} 51... Kd5 {[%clk 0:00:14.1]} 52. Rf1 {[%clk 0:00:01.7]} 52...
Nxb4 {[%clk 0:00:12.5]} 53. Nxh7 {[%clk 0:00:01.4]} 53... g5 {[%clk 0:00:11.5]}
54. Rf8 {[%clk 0:00:01.9]} 54... g4 {[%clk 0:00:10.9]} 55. Nf6+ {[%clk
0:00:02.6]} 55... Kc5 {[%clk 0:00:09.8]} 56. Rc8+ {[%clk 0:00:02.7]} 56... Kb5
{[%clk 0:00:09.5]} 57. Nxg4 {[%clk 0:00:03.2]} 57... Rg2 {[%clk 0:00:09.7]} 0-1

[Event "Early-Titled-Tuesday-Blitz-May-28-2024"]
[Site "Chess.com"]
[Date "2024.05.28"]
[Round "11"]
[White "sergeikim"]
[Black "MatthewG-p4p"]
[Result "0-1"]
[WhiteElo "2611"]
[BlackElo "2854"]
[TimeControl "180+1"]
[EndTime "10:10:01 PDT"]
[Termination "MatthewG-p4p won by resignation"]

1. d4 {[%clk 0:03:00.9]} 1... Nf6 {[%clk 0:02:56.8]} 2. c4 {[%clk 0:03:00.5]}
2... c5 {[%clk 0:02:56.4]} 3. d5 {[%clk 0:03:00.1]} 3... e6 {[%clk 0:02:53.5]}
4. Nc3 {[%clk 0:02:58.8]} 4... exd5 {[%clk 0:02:54]} 5. cxd5 {[%clk 0:02:59.7]}
5... d6 {[%clk 0:02:54]} 6. e4 {[%clk 0:02:59.8]} 6... g6 {[%clk 0:02:54]} 7.
Nge2 {[%clk 0:02:59.9]} 7... Bg7 {[%clk 0:02:43.4]} 8. Ng3 {[%clk 0:02:59.5]}
8... a6 {[%clk 0:02:40.4]} 9. a4 {[%clk 0:02:58.7]} 9... h5 {[%clk 0:02:40.9]}
10. Be2 {[%clk 0:02:57.7]} 10... Qe7 {[%clk 0:02:38.3]} 11. O-O {[%clk
0:02:46.6]} 11... h4 {[%clk 0:02:37.1]} 12. Nh1 {[%clk 0:02:46.6]} 12... Nxe4
{[%clk 0:02:35.6]} 13. Nxe4 {[%clk 0:02:46]} 13... Qxe4 {[%clk 0:02:36.5]} 14.
Re1 {[%clk 0:02:44]} 14... O-O {[%clk 0:02:32.5]} 15. Bf3 {[%clk 0:02:34.7]}
15... Qc4 {[%clk 0:02:09.7]} 16. Re4 {[%clk 0:02:21.6]} 16... Bd4 {[%clk
0:02:02.7]} 17. Be3 {[%clk 0:02:13.6]} 17... Bf5 {[%clk 0:01:54.9]} 18. Rxh4
{[%clk 0:02:09.1]} 18... Nd7 {[%clk 0:01:54.2]} 19. Bxd4 {[%clk 0:02:04.9]}
19... cxd4 {[%clk 0:01:54.2]} 20. Rxd4 {[%clk 0:02:04.6]} 20... Qc2 {[%clk
0:01:49.8]} 21. Ng3 {[%clk 0:02:02.5]} 21... Ne5 {[%clk 0:01:47.5]} 22. Be4
{[%clk 0:01:50.8]} 22... Qxd1+ {[%clk 0:01:37.6]} 23. Raxd1 {[%clk 0:01:46.5]}
23... Bd7 {[%clk 0:01:38.5]} 24. f4 {[%clk 0:01:31.6]} 24... Ng4 {[%clk
0:01:38.2]} 25. h3 {[%clk 0:01:30.7]} 25... Nf6 {[%clk 0:01:34.2]} 26. Rc1
{[%clk 0:01:29.2]} 26... Rfc8 {[%clk 0:01:31.8]} 27. Rdc4 {[%clk 0:01:29.2]}
27... Rxc4 {[%clk 0:01:19.1]} 28. Rxc4 {[%clk 0:01:29.1]} 28... b5 {[%clk
0:01:16]} 29. axb5 {[%clk 0:01:17.4]} 29... Bxb5 {[%clk 0:01:16.9]} 30. Rc7
{[%clk 0:01:10.8]} 30... Re8 {[%clk 0:01:14.5]} 31. Bf3 {[%clk 0:01:06.8]} 31...
Re1+ {[%clk 0:01:14.3]} 32. Kh2 {[%clk 0:01:04.3]} 32... Rb1 {[%clk 0:01:15.2]}
33. f5 {[%clk 0:00:59.7]} 33... Rxb2 {[%clk 0:01:13.4]} 34. fxg6 {[%clk
0:00:56.2]} 34... fxg6 {[%clk 0:01:14.3]} 35. Be4 {[%clk 0:00:54.2]} 35... Nxe4
{[%clk 0:00:30.4]} 36. Nxe4 {[%clk 0:00:52.6]} 36... Bf1 {[%clk 0:00:31.1]} 37.
Nf6+ {[%clk 0:00:20.6]} 37... Kf8 {[%clk 0:00:31.3]} 38. Nh7+ {[%clk 0:00:14.9]}
38... Ke8 {[%clk 0:00:31]} 39. Nf6+ {[%clk 0:00:13.8]} 39... Kd8 {[%clk
0:00:31.5]} 40. Rd7+ {[%clk 0:00:14.1]} 40... Kc8 {[%clk 0:00:31.4]} 41. Rxd6
{[%clk 0:00:14.3]} 41... Rxg2+ {[%clk 0:00:31.5]} 42. Kh1 {[%clk 0:00:14.4]}
42... Rf2 {[%clk 0:00:28.6]} 43. Ng4 {[%clk 0:00:12.6]} 43... Rf4 {[%clk
0:00:27.2]} 44. Kg1 {[%clk 0:00:10.9]} 44... Bd3 {[%clk 0:00:26.1]} 45. Ne5
{[%clk 0:00:09.7]} 45... Bf5 {[%clk 0:00:24.8]} 46. Nxg6 {[%clk 0:00:09.1]}
46... Re4 {[%clk 0:00:25]} 47. Rxa6 {[%clk 0:00:07.9]} 47... Kd7 {[%clk
0:00:20.2]} 48. Rf6 {[%clk 0:00:07.9]} 48... Bxh3 {[%clk 0:00:19]} 49. Kf2
{[%clk 0:00:06.9]} 49... Ra4 {[%clk 0:00:19.1]} 50. Kg3 {[%clk 0:00:06.9]} 50...
Ra3+ {[%clk 0:00:16]} 51. Kf4 {[%clk 0:00:06.8]} 51... Bg2 {[%clk 0:00:14.2]}
52. Ne5+ {[%clk 0:00:06.4]} 52... Ke8 {[%clk 0:00:12]} 53. Re6+ {[%clk
0:00:06.5]} 53... Kd8 {[%clk 0:00:11.2]} 54. Nc6+ {[%clk 0:00:06.5]} 54... Kc7
{[%clk 0:00:10.2]} 55. Ke5 {[%clk 0:00:07.4]} 55... Ra1 {[%clk 0:00:07.4]} 56.
Re7+ {[%clk 0:00:07.2]} 56... Kb6 {[%clk 0:00:08.1]} 57. Re8 {[%clk 0:00:03.7]}
57... Re1+ {[%clk 0:00:07.9]} 58. Kd6 {[%clk 0:00:03.1]} 58... Rxe8 {[%clk
0:00:08.8]} 0-1

[Event "Early-Titled-Tuesday-Blitz-May-28-2024"]
[Site "Chess.com"]
[Date "2024.05.28"]
[Round "11"]
[White "BashiqChess"]
[Black "Statham_01"]
[Result "1-0"]
[WhiteElo "2469"]
[BlackElo "2692"]
[TimeControl "180+1"]
[EndTime "10:10:03 PDT"]
[Termination "BashiqChess won by checkmate"]

1. Nf3 {[%clk 0:03:00.9]} 1... d5 {[%clk 0:02:58.7]} 2. b3 {[%clk 0:03:00.7]}
2... c5 {[%clk 0:02:56.8]} 3. e3 {[%clk 0:02:58.8]} 3... Nc6 {[%clk 0:02:57.1]}
4. Bb2 {[%clk 0:02:58.7]} 4... Bg4 {[%clk 0:02:55.4]} 5. Bb5 {[%clk 0:02:58.1]}
5... e6 {[%clk 0:02:52.8]} 6. h3 {[%clk 0:02:58.2]} 6... Bxf3 {[%clk 0:02:51.7]}
7. Bxc6+ {[%clk 0:02:56.1]} 7... bxc6 {[%clk 0:02:51.3]} 8. Qxf3 {[%clk
0:02:56.8]} 8... Nf6 {[%clk 0:02:48.5]} 9. d3 {[%clk 0:02:52.7]} 9... Be7 {[%clk
0:02:46.1]} 10. O-O {[%clk 0:02:52.3]} 10... O-O {[%clk 0:02:42.4]} 11. c4
{[%clk 0:02:52.8]} 11... a5 {[%clk 0:02:41.5]} 12. Nc3 {[%clk 0:02:53]} 12...
Nd7 {[%clk 0:02:36.7]} 13. Na4 {[%clk 0:02:52.7]} 13... Nb6 {[%clk 0:02:28.4]}
14. Qg3 {[%clk 0:02:12.3]} 14... d4 {[%clk 0:02:02.5]} 15. Nxb6 {[%clk
0:01:20.2]} 15... Qxb6 {[%clk 0:02:03.4]} 16. Qf4 {[%clk 0:01:20.5]} 16... Bf6
{[%clk 0:01:55.6]} 17. g4 {[%clk 0:01:17.4]} 17... h6 {[%clk 0:01:49.3]} 18. e4
{[%clk 0:01:05.4]} 18... e5 {[%clk 0:01:43.5]} 19. Qd2 {[%clk 0:01:00.2]} 19...
a4 {[%clk 0:01:35.4]} 20. bxa4 {[%clk 0:00:54]} 20... Bg5 {[%clk 0:01:29.1]} 21.
Qc2 {[%clk 0:00:50.9]} 21... Ra7 {[%clk 0:01:10.3]} 22. Bc1 {[%clk 0:00:50.9]}
22... Qd8 {[%clk 0:01:01.6]} 23. f4 {[%clk 0:00:49.3]} 23... exf4 {[%clk
0:00:59.7]} 24. Bxf4 {[%clk 0:00:50.2]} 24... Bxf4 {[%clk 0:00:56.1]} 25. Rxf4
{[%clk 0:00:51.1]} 25... Qg5 {[%clk 0:00:55.4]} 26. Rf5 {[%clk 0:00:35.8]} 26...
Qe3+ {[%clk 0:00:54.2]} 27. Kg2 {[%clk 0:00:36.1]} 27... Rfa8 {[%clk 0:00:49.4]}
28. h4 {[%clk 0:00:21.8]} 28... Rxa4 {[%clk 0:00:38.9]} 29. Rf3 {[%clk 0:00:20]}
29... Qxf3+ {[%clk 0:00:12.2]} 30. Kxf3 {[%clk 0:00:20.9]} 30... Ra3 {[%clk
0:00:11.7]} 31. g5 {[%clk 0:00:19.3]} 31... h5 {[%clk 0:00:11.7]} 32. Rb1 {[%clk
0:00:18.1]} 32... Rc3 {[%clk 0:00:11.1]} 33. Qd2 {[%clk 0:00:15.8]} 33... Raa3
{[%clk 0:00:06.1]} 34. Rb3 {[%clk 0:00:12.6]} 34... Raxb3 {[%clk 0:00:05.4]} 35.
axb3 {[%clk 0:00:13.5]} 35... Rxb3 {[%clk 0:00:06.3]} 36. Ke2 {[%clk 0:00:10.8]}
36... Kh7 {[%clk 0:00:05.8]} 37. Qf4 {[%clk 0:00:09.6]} 37... Kg8 {[%clk
0:00:03]} 38. Qf5 {[%clk 0:00:08.5]} 38... Rb2+ {[%clk 0:00:03.4]} 39. Kf3
{[%clk 0:00:08.1]} 39... g6 {[%clk 0:00:03.5]} 40. Qxc5 {[%clk 0:00:08.3]} 40...
Rh2 {[%clk 0:00:02.9]} 41. Kg3 {[%clk 0:00:08]} 41... Rd2 {[%clk 0:00:02.3]} 42.
Qxd4 {[%clk 0:00:07.8]} 42... c5 {[%clk 0:00:02.9]} 43. Qd5 {[%clk 0:00:07]}
43... Kg7 {[%clk 0:00:02.6]} 44. e5 {[%clk 0:00:07.1]} 44... Re2 {[%clk
0:00:02.9]} 45. Kf3 {[%clk 0:00:07]} 45... Rh2 {[%clk 0:00:02.9]} 46. Kg3 {[%clk
0:00:06.4]} 46... Re2 {[%clk 0:00:02.9]} 47. Qxc5 {[%clk 0:00:06]} 47... Rd2
{[%clk 0:00:03.4]} 48. Qd5 {[%clk 0:00:06.3]} 48... Re2 {[%clk 0:00:03.9]} 49.
c5 {[%clk 0:00:05.8]} 49... f5 {[%clk 0:00:04.1]} 50. exf6+ {[%clk 0:00:06]}
50... Kh7 {[%clk 0:00:04.4]} 51. Qd7+ {[%clk 0:00:06]} 51... Re7 {[%clk
0:00:03.8]} 52. Qxe7+ {[%clk 0:00:06.2]} 52... Kh8 {[%clk 0:00:03.8]} 53. Qg7#
{[%clk 0:00:07.1]} 1-0

[Event "Early-Titled-Tuesday-Blitz-May-28-2024"]
[Site "Chess.com"]
[Date "2024.05.28"]
[Round "11"]
[White "ATM622"]
[Black "SaraBlackPanther"]
[Result "0-1"]
[WhiteElo "2574"]
[BlackElo "2747"]
[TimeControl "180+1"]
[EndTime "10:10:03 PDT"]
[Termination "SaraBlackPanther won by resignation"]

1. d4 {[%clk 0:03:00.9]} 1... Nf6 {[%clk 0:03:00.1]} 2. c4 {[%clk 0:03:01.2]}
2... g6 {[%clk 0:03:00.6]} 3. g3 {[%clk 0:03:01.5]} 3... Bg7 {[%clk 0:03:01.1]}
4. Bg2 {[%clk 0:03:01.8]} 4... O-O {[%clk 0:03:01.8]} 5. Nf3 {[%clk 0:03:02.3]}
5... d6 {[%clk 0:03:02.3]} 6. O-O {[%clk 0:03:02.6]} 6... Nc6 {[%clk 0:03:03]}
7. Nc3 {[%clk 0:03:03.1]} 7... Bd7 {[%clk 0:03:03.4]} 8. Qc2 {[%clk 0:02:59.5]}
8... e5 {[%clk 0:03:02.3]} 9. dxe5 {[%clk 0:02:59.2]} 9... dxe5 {[%clk
0:03:02.6]} 10. Rd1 {[%clk 0:02:59.3]} 10... Qc8 {[%clk 0:02:57.8]} 11. Bg5
{[%clk 0:02:55.9]} 11... Bf5 {[%clk 0:02:53.7]} 12. e4 {[%clk 0:02:41.2]} 12...
Bg4 {[%clk 0:02:47.2]} 13. Bxf6 {[%clk 0:02:29.3]} 13... Bxf6 {[%clk 0:02:47.3]}
14. Nd5 {[%clk 0:02:29.6]} 14... Bg7 {[%clk 0:02:47.4]} 15. b4 {[%clk
0:02:14.5]} 15... Bxf3 {[%clk 0:02:40.1]} 16. Bxf3 {[%clk 0:02:13.4]} 16... Re8
{[%clk 0:02:40.1]} 17. Bg2 {[%clk 0:01:54.2]} 17... Nd4 {[%clk 0:02:40.4]} 18.
Qb2 {[%clk 0:01:52.6]} 18... c6 {[%clk 0:02:40.3]} 19. Nc3 {[%clk 0:01:48]}
19... Qe6 {[%clk 0:02:39.7]} 20. Bf1 {[%clk 0:01:46.4]} 20... Rad8 {[%clk
0:02:35.2]} 21. a4 {[%clk 0:01:38.2]} 21... f5 {[%clk 0:02:32.9]} 22. c5 {[%clk
0:01:26.5]} 22... Kh8 {[%clk 0:02:30.3]} 23. Qa2 {[%clk 0:01:22.3]} 23... Qf6
{[%clk 0:02:24.4]} 24. exf5 {[%clk 0:01:15.2]} 24... gxf5 {[%clk 0:02:23.8]} 25.
Qc4 {[%clk 0:00:51.9]} 25... e4 {[%clk 0:02:22.8]} 26. Ne2 {[%clk 0:00:45.5]}
26... Nf3+ {[%clk 0:02:17.8]} 27. Kh1 {[%clk 0:00:37.9]} 27... Qh6 {[%clk
0:02:18.4]} 28. h3 {[%clk 0:00:36]} 28... Bxa1 {[%clk 0:02:15.4]} 29. Rxa1
{[%clk 0:00:31.8]} 29... Qf6 {[%clk 0:02:15.4]} 30. Rc1 {[%clk 0:00:28.7]} 30...
Rd2 {[%clk 0:02:07.4]} 31. b5 {[%clk 0:00:17.7]} 31... Red8 {[%clk 0:02:04.9]}
32. Kg2 {[%clk 0:00:14.8]} 32... Ne5 {[%clk 0:01:45.9]} 33. Qc3 {[%clk 0:00:11]}
33... R8d3 {[%clk 0:01:17.4]} 34. Qa1 {[%clk 0:00:10.9]} 34... Nd7 {[%clk
0:01:08.7]} 35. Nf4 {[%clk 0:00:08.1]} 35... Qxa1 {[%clk 0:01:07.1]} 36. Rxa1
{[%clk 0:00:09]} 36... Rf3 {[%clk 0:01:05.9]} 37. bxc6 {[%clk 0:00:09]} 37...
Rfxf2+ {[%clk 0:01:03.8]} 38. Kg1 {[%clk 0:00:09.1]} 38... bxc6 {[%clk
0:01:04.5]} 39. Rb1 {[%clk 0:00:09.3]} 39... Ne5 {[%clk 0:01:02.1]} 40. Bg2
{[%clk 0:00:06.2]} 40... Nf3+ {[%clk 0:00:54.8]} 41. Bxf3 {[%clk 0:00:06.3]}
41... Rxf3 {[%clk 0:00:51.5]} 42. Nh5 {[%clk 0:00:05.1]} 42... Rfd3 {[%clk
0:00:50.6]} 43. Rb7 {[%clk 0:00:02.9]} 43... Rd7 {[%clk 0:00:42.4]} 44. Rb8+
{[%clk 0:00:02.9]} 44... Rd8 {[%clk 0:00:42.8]} 45. Rb7 {[%clk 0:00:03.5]} 45...
R2d7 {[%clk 0:00:43.1]} 46. Rb4 {[%clk 0:00:03.4]} 46... Re7 {[%clk 0:00:42.8]}
47. Kf2 {[%clk 0:00:03.5]} 47... e3+ {[%clk 0:00:43.2]} 48. Ke1 {[%clk 0:00:04]}
48... e2 {[%clk 0:00:42.3]} 49. Rb1 {[%clk 0:00:04.2]} 49... Rd1+ {[%clk
0:00:39.9]} 50. Rxd1 {[%clk 0:00:04.4]} 50... exd1=Q+ {[%clk 0:00:40.8]} 51.
Kxd1 {[%clk 0:00:05.3]} 51... Re5 {[%clk 0:00:41.4]} 52. Nf4 {[%clk 0:00:04.7]}
52... Rxc5 {[%clk 0:00:41.5]} 53. Kd2 {[%clk 0:00:05.1]} 53... Ra5 {[%clk
0:00:41]} 54. Kc3 {[%clk 0:00:03.3]} 54... Rxa4 {[%clk 0:00:41.5]} 55. Kb3
{[%clk 0:00:04]} 55... Re4 {[%clk 0:00:41.7]} 56. Nh5 {[%clk 0:00:03]} 56... a5
{[%clk 0:00:39.5]} 57. Kc3 {[%clk 0:00:03.4]} 57... a4 {[%clk 0:00:39.6]} 58.
Kb2 {[%clk 0:00:03.9]} 58... c5 {[%clk 0:00:40]} 59. Nf6 {[%clk 0:00:04]} 59...
Re3 {[%clk 0:00:39.5]} 60. g4 {[%clk 0:00:04.1]} 60... f4 {[%clk 0:00:38.2]} 61.
Nd5 {[%clk 0:00:03.5]} 61... Re2+ {[%clk 0:00:37.3]} 62. Kc3 {[%clk 0:00:03.5]}
62... f3 {[%clk 0:00:38.2]} 63. Kd3 {[%clk 0:00:03.9]} 63... a3 {[%clk
0:00:38.8]} 64. Nf4 {[%clk 0:00:04.1]} 64... a2 {[%clk 0:00:39.2]} 65. Nxe2
{[%clk 0:00:04.4]} 65... fxe2 {[%clk 0:00:40.1]} 0-1

[Event "Early-Titled-Tuesday-Blitz-May-28-2024"]
[Site "Chess.com"]
[Date "2024.05.28"]
[Round "11"]
[White "Iskusnyh"]
[Black "Lady_Nika"]
[Result "0-1"]
[WhiteElo "2612"]
[BlackElo "2542"]
[TimeControl "180+1"]
[EndTime "10:10:05 PDT"]
[Termination "Lady_Nika won on time"]

1. d4 {[%clk 0:03:00.9]} 1... d5 {[%clk 0:02:56.1]} 2. c4 {[%clk 0:03:00]} 2...
e6 {[%clk 0:02:56.2]} 3. Nf3 {[%clk 0:02:59.7]} 3... f5 {[%clk 0:02:52.3]} 4. g3
{[%clk 0:02:54.3]} 4... Nf6 {[%clk 0:02:52.7]} 5. Bg2 {[%clk 0:02:53.6]} 5... c6
{[%clk 0:02:53.2]} 6. Bf4 {[%clk 0:02:53]} 6... Bd6 {[%clk 0:02:53.6]} 7. Nc3
{[%clk 0:02:42.6]} 7... O-O {[%clk 0:02:53.5]} 8. e3 {[%clk 0:02:39.8]} 8... Qe7
{[%clk 0:02:53.6]} 9. O-O {[%clk 0:02:39.2]} 9... Nbd7 {[%clk 0:02:53.3]} 10. c5
{[%clk 0:02:39.1]} 10... Bb8 {[%clk 0:02:52.9]} 11. b4 {[%clk 0:02:20.4]} 11...
a6 {[%clk 0:02:52.9]} 12. a4 {[%clk 0:02:13.5]} 12... Ne4 {[%clk 0:02:52.1]} 13.
Qb3 {[%clk 0:02:08.7]} 13... e5 {[%clk 0:02:51]} 14. dxe5 {[%clk 0:01:53.7]}
14... Nxe5 {[%clk 0:02:39.1]} 15. Nxe5 {[%clk 0:01:34.4]} 15... Bxe5 {[%clk
0:02:38.3]} 16. Nxd5 {[%clk 0:01:28.7]} 16... Qf7 {[%clk 0:02:22.3]} 17. Ne7+
{[%clk 0:01:24.6]} 17... Kh8 {[%clk 0:02:11.4]} 18. Qxf7 {[%clk 0:01:23.2]}
18... Rxf7 {[%clk 0:02:11.5]} 19. Nxc8 {[%clk 0:01:16.9]} 19... Bxa1 {[%clk
0:01:43.5]} 20. Nb6 {[%clk 0:01:16.3]} 20... Rd8 {[%clk 0:01:37.9]} 21. Rxa1
{[%clk 0:01:15]} 21... Rd2 {[%clk 0:01:34.2]} 22. Bxe4 {[%clk 0:01:11.8]} 22...
fxe4 {[%clk 0:01:33.9]} 23. h4 {[%clk 0:01:00.5]} 23... h6 {[%clk 0:01:20.3]}
24. Nc4 {[%clk 0:00:49.4]} 24... Rc2 {[%clk 0:01:17.1]} 25. Ne5 {[%clk
0:00:49.1]} 25... Rf6 {[%clk 0:01:04.3]} 26. Rd1 {[%clk 0:00:44.1]} 26... g5
{[%clk 0:01:03.5]} 27. Ng4 {[%clk 0:00:42.3]} 27... Rf8 {[%clk 0:00:57.3]} 28.
Be5+ {[%clk 0:00:41.5]} 28... Kh7 {[%clk 0:00:56.5]} 29. Rd7+ {[%clk 0:00:33.6]}
29... Kg6 {[%clk 0:00:55.8]} 30. Bd4 {[%clk 0:00:20.9]} 30... gxh4 {[%clk
0:00:35.2]} 31. Ne5+ {[%clk 0:00:18.3]} 31... Kg5 {[%clk 0:00:26.4]} 32. Rg7+
{[%clk 0:00:16.6]} 32... Kf5 {[%clk 0:00:26.5]} 33. g4+ {[%clk 0:00:16.5]} 33...
Ke6 {[%clk 0:00:25.7]} 34. Rg6+ {[%clk 0:00:16.8]} 34... Ke7 {[%clk 0:00:24.7]}
35. Rxh6 {[%clk 0:00:16.8]} 35... Rfxf2 {[%clk 0:00:24.4]} 36. Rxh4 {[%clk
0:00:14.3]} 36... Rg2+ {[%clk 0:00:23.9]} 37. Kh1 {[%clk 0:00:14.2]} 37... Rgd2
{[%clk 0:00:22.2]} 38. Rh7+ {[%clk 0:00:14.1]} 38... Ke6 {[%clk 0:00:21.3]} 39.
Rh6+ {[%clk 0:00:14.4]} 39... Ke7 {[%clk 0:00:21.3]} 40. Rh7+ {[%clk 0:00:14.3]}
40... Ke6 {[%clk 0:00:21.2]} 41. Rh6+ {[%clk 0:00:13.5]} 41... Ke7 {[%clk
0:00:21]} 42. Ng6+ {[%clk 0:00:13.3]} 42... Kf7 {[%clk 0:00:17.5]} 43. Ne5+
{[%clk 0:00:12.9]} 43... Kg8 {[%clk 0:00:14.1]} 44. Rg6+ {[%clk 0:00:04.1]}
44... Kh7 {[%clk 0:00:14.2]} 45. Rg7+ {[%clk 0:00:04.5]} 45... Kxg7 {[%clk
0:00:14.3]} 46. Nc4+ {[%clk 0:00:05.2]} 46... Kg6 {[%clk 0:00:13.9]} 47. Nxd2
{[%clk 0:00:05.4]} 47... Rxd2 {[%clk 0:00:14.4]} 48. a5 {[%clk 0:00:05.5]} 48...
Kg5 {[%clk 0:00:14.5]} 49. Kg1 {[%clk 0:00:05.9]} 49... Kxg4 {[%clk 0:00:14.7]}
50. Kf1 {[%clk 0:00:06.8]} 50... Kf3 {[%clk 0:00:15.1]} 51. Ke1 {[%clk
0:00:07.7]} 51... Ra2 {[%clk 0:00:14.7]} 52. Kd1 {[%clk 0:00:07.9]} 52... Ra4
{[%clk 0:00:13.9]} 53. Kc2 {[%clk 0:00:07.9]} 53... Rxb4 {[%clk 0:00:14.2]} 54.
Kc3 {[%clk 0:00:08.2]} 54... Rb1 {[%clk 0:00:13.7]} 55. Kc4 {[%clk 0:00:07.1]}
55... Re1 {[%clk 0:00:13.4]} 56. Bc3 {[%clk 0:00:05.5]} 56... Rxe3 {[%clk
0:00:13.5]} 57. Kd4 {[%clk 0:00:06.4]} 57... Rxc3 {[%clk 0:00:13.2]} 0-1